Workbook

Sheet NSU
B1: Siiri Laine | E1: 13.10.2005 Hyvinkää
B2: SUPERPESIS | E2: RUNKOSARJA | I2: Kärkilyönnit (KL), pesänvälit | Q2: Runkosarja | U2: Ylempi loppusarja | Z2: Alempi loppusarja | AG2: Arvo-ottelut ja mitalit
B3: Vuosi | C3: Sija | D3: Seura | E3: OTT | F3: KUN | G3: LÖI | H3: TOI | I3: KL | J3: 0 > 1 | K3: 1 > 2 | L3: 2 > 3 | M3: 3 > k | N3: KL-% | P3: LÖI | Q3: TOI | R3: L+T | S3: KL | U3: OTT | V3: KUN | W3: LÖI | X3: TOI | Y3: KL | Z3: OTT | AA3: KUN | AB3: LÖI | AC3: TOI | AD3: KL | AE3: IL | AF3: LL | AG3: Halli | AH3: K | AI3: H | AJ3: P
B4: 2019 | D4: Tahko | F4: suomensarja
B5: 2020 | D5: Tahko | F5: suomensarja
B6: 2021 | C6: 8. | D6: Jana | F6: ykköspesis
B7: 2022 | D7: Tahko | F7: suomensarja
B8: 2022 | C8: 8. | D8: Jana | F8: ykköspesis
B9: 2022 | C9: 8. | D9: Tahko | E9: 2 | F9: 0 | G9: 3 | H9: 1 | I9: 5 | J9: 2 | K9: 0 | L9: 0 | M9: 3 | N9: 71.4 % | O9: 7 | U9: 3 | V9: 1 | W9: 2 | X9: 2 | Y9: 7
B10: 2023 | C10: 2. | D10: Manse PP | E10: 7 | F10: 0 | G10: 6 | H10: 1 | I10: 10 | J10: 2 | K10: 1 | L10: 1 | M10: 6 | N10: 50.0 % | O10: 20 | AG10: 1 | AI10: 1
B11: 2024 | C11: 1. | D11: Manse PP | E11: 24 | F11: 0 | G11: 20 | H11: 1 | I11: 34 | J11: 0 | K11: 3 | L11: 11 | M11: 20 | N11: 40.0 % | O11: 85 | U11: 10 | V11: 0 | W11: 3 | X11: 0 | Y11: 12 | AH11: 1
B12: Yhteensä | E12: =SUM(E4:E11) -> 33 | F12: 0 | G12: 29 | H12: 3 | I12: 49 | J12: 4 | K12: 4 | L12: 12 | M12: 29 | N12: =PRODUCT(I12/O12) -> 43.8 % | O12: =SUM(O4:O11) -> 112 | U12: 13 | V12: 1 | W12: 5 | X12: 2 | Y12: 19 | Z12: 0 | AA12: 0 | AB12: 0 | AC12: 0 | AD12: 0 | AE12: 0 | AF12: 0 | AG12: 1 | AH12: 1 | AI12: 1 | AJ12: 0
B13: Pesispörssi | D13: =SUM(F12:H12)+((I12-F12-G12)/3)+(E12/3)+(AE12*25)+(AF12*25)+(AG12*10)+(AH12*25)+(AI12*20)+(AJ12*15)-20 -> 84.7
B15: URA SUPERISSA | E15: OTT | F15: KUN | G15: LÖI | H15: TOI | I15: KL | K15: ka/L | L15: ka/T | M15: ka/KL | N15: K - % | P15: ENSIMMÄISET
B16: Runkosarja | E16: =PRODUCT(E12) -> 33 | F16: =PRODUCT(F12) -> 0 | G16: =PRODUCT(G12) -> 29 | H16: =PRODUCT(H12) -> 3 | I16: =PRODUCT(I12) -> 49 | K16: =PRODUCT((F16+G16)/E16) -> 0.88 | L16: =PRODUCT(H16/E16) -> 0.09 | M16: =PRODUCT(I16/E16) -> 1.48 | N16: =PRODUCT(N12) -> 43.8 % | O16: =PRODUCT(O12) -> 112 | P16: Ottelu | R16: 13.08. 2022 KeKi - Tahko 2-1 (5-0, 6-7, 0-0, 1-0) | AB16: 1. ottelu | AF16: 16 v 10 kk 0 pv
B17: Ylempi loppusarja | E17: =PRODUCT(U12) -> 13 | F17: =PRODUCT(V12) -> 1 | G17: 5 | H17: 2 | I17: 19 | K17: =PRODUCT((F17+G17)/E17) -> 0.46 | L17: =PRODUCT(H17/E17) -> 0.15 | M17: =PRODUCT(I17/E17) -> 1.46 | N17: =PRODUCT(I17/O17) -> 37.3 % | O17: 51 | P17: Lyöty | R17: 13.08. 2022 KeKi - Tahko 2-1 (5-0, 6-7, 0-0, 1-0) | AB17: 1. ottelu | AF17: 16 v 10 kk 0 pv
B18: Alempi loppusarja | P18: Tuotu | R18: 13.08. 2022 KeKi - Tahko 2-1 (5-0, 6-7, 0-0, 1-0) | AB18: 1. ottelu | AF18: 16 v 10 kk 0 pv
B19: KAIKKI | E19: =SUM(E16:E18) -> 46 | F19: =SUM(F16:F18) -> 1 | G19: =SUM(G16:G18) -> 34 | H19: =SUM(H16:H18) -> 5 | I19: =SUM(I16:I18) -> 68 | K19: =PRODUCT((F19+G19)/E19) -> 0.76 | L19: =PRODUCT(H19/E19) -> 0.11 | M19: =PRODUCT(I19/E19) -> 1.48 | N19: =PRODUCT(I19/O19) -> 41.7 % | O19: =SUM(O16:O18) -> 163 | P19: Kunnari | R19: 19.08. 2022 Tahko - Manse PP 1-2 (10-3, 3-4, 0-1) | AB19: 4. ottelu | AF19: 16 v 10 kk 6 pv
B21: Seurat | D21: Tahko = Hyvinkään Tahko (1915), kasvattajaseura
D22: Jana = Janakkalan Jana (1929)
D23: Manse PP = Manse PP Edustus (2015)

Sheet Arvo-ottelut
B1: ITÄ - LÄNSI - KORTTI
B2: Siiri Laine | C2: 13.10.2005 Hyvinkää
B3: B-TYTÖT | C3: Itä - Länsi, tulos | D3: Joukkue | E3: Seura | G3: V | H3: T | I3: H | J3: Up. | K3: Lj. | L3: Palk. | M3: O | N3: K | O3: L | P3: T | Q3: KL | R3: 1 | S3: 2 | T3: 3 | U3: k | V3: KL-% | W3: Pelinjohtaja | X3: Yleisöä
B4: 29.06. 2024 Jyväskylä | C4: 0-2 (0-3, 0-3) | D4: Itä | E4: JoMa | I4: 1 | J4: 2p | K4: 1 | L4: I p | M4: 1 | Q4: 4/4 | R4: 3/3 | S4: 1/1 | V4: 100.0 % | W4: Jarmo Viittanen | X4: 1422
